[Event "Early-Titled-Tuesday-Blitz-May-28-2024"]
[Site "Chess.com"]
[Date "2024.05.28"]
[Round "8"]
[White "ailime26"]
[Black "Willi_Skibbe"]
[Result "0-1"]
[WhiteElo "2079"]
[BlackElo "2253"]
[TimeControl "180+1"]
[EndTime "9:30:03 PDT"]
[Termination "Willi_Skibbe won on time"]

1. Nf3 {[%clk 0:02:59.4]} 1... d5 {[%clk 0:02:56.3]} 2. b3 {[%clk 0:02:58.2]}
2... Bg4 {[%clk 0:02:47.5]} 3. g3 {[%clk 0:02:45.8]} 3... Nd7 {[%clk 0:02:37.7]}
4. Bg2 {[%clk 0:02:45.2]} 4... e6 {[%clk 0:02:36.7]} 5. O-O {[%clk 0:02:44.3]}
5... Ngf6 {[%clk 0:02:34.5]} 6. Bb2 {[%clk 0:02:43.5]} 6... Be7 {[%clk 0:02:33]}
7. d3 {[%clk 0:02:43.6]} 7... O-O {[%clk 0:02:32.3]} 8. Nbd2 {[%clk 0:02:43]}
8... a5 {[%clk 0:02:24.4]} 9. c4 {[%clk 0:02:42]} 9... c6 {[%clk 0:02:23.5]} 10.
Rc1 {[%clk 0:02:41.4]} 10... a4 {[%clk 0:02:21.2]} 11. Rc2 {[%clk 0:02:35.9]}
11... axb3 {[%clk 0:02:20.2]} 12. axb3 {[%clk 0:02:28.3]} 12... Qb6 {[%clk
0:02:16.3]} 13. cxd5 {[%clk 0:02:23.2]} 13... exd5 {[%clk 0:02:13.6]} 14. Ne5
{[%clk 0:02:05.4]} 14... Nxe5 {[%clk 0:02:11.2]} 15. Bxe5 {[%clk 0:02:04.6]}
15... Rfe8 {[%clk 0:02:09.3]} 16. h3 {[%clk 0:01:58.5]} 16... Bh5 {[%clk
0:01:42.8]} 17. g4 {[%clk 0:01:56.2]} 17... Bg6 {[%clk 0:01:40.6]} 18. Qb1
{[%clk 0:01:51.1]} 18... Nd7 {[%clk 0:01:38.2]} 19. Bc3 {[%clk 0:01:41.7]} 19...
Bc5 {[%clk 0:01:34.3]} 20. Qb2 {[%clk 0:01:28.6]} 20... Rxe2 {[%clk 0:01:29.3]}
21. Nf3 {[%clk 0:01:00.9]} 21... Bxf2+ {[%clk 0:01:23.2]} 22. Kh2 {[%clk
0:00:55.1]} 22... Rxc2 {[%clk 0:01:16.1]} 23. Qxc2 {[%clk 0:00:54.9]} 23... Be3
{[%clk 0:01:14.3]} 24. Qb2 {[%clk 0:00:52.3]} 24... f6 {[%clk 0:00:55.4]} 25. g5
{[%clk 0:00:43.7]} 25... Bxd3 {[%clk 0:00:48.4]} 26. Rd1 {[%clk 0:00:41.9]}
26... Qc7+ {[%clk 0:00:44.8]} 27. Kh1 {[%clk 0:00:39.6]} 27... Be4 {[%clk
0:00:42.2]} 28. gxf6 {[%clk 0:00:35.9]} 28... Qg3 {[%clk 0:00:38.9]} 29. Be1
{[%clk 0:00:14.1]} 29... Qf4 {[%clk 0:00:27.6]} 30. Qe2 {[%clk 0:00:09.4]} 30...
Nxf6 {[%clk 0:00:22.8]} 31. Bc3 {[%clk 0:00:06.6]} 31... Nh5 {[%clk 0:00:17.5]}
32. Be1 {[%clk 0:00:01.6]} 32... Rf8 {[%clk 0:00:16.2]} 0-1

[Event "Early-Titled-Tuesday-Blitz-May-28-2024"]
[Site "Chess.com"]
[Date "2024.05.28"]
[Round "8"]
[White "Shankland"]
[Black "GothamChess"]
[Result "1-0"]
[WhiteElo "2982"]
[BlackElo "2781"]
[TimeControl "180+1"]
[EndTime "9:30:07 PDT"]
[Termination "Shankland won on time"]

1. c4 {[%clk 0:03:00.9]} 1... g6 {[%clk 0:02:57.9]} 2. g3 {[%clk 0:02:59.1]}
2... Bg7 {[%clk 0:02:58.2]} 3. Bg2 {[%clk 0:02:59.7]} 3... d6 {[%clk 0:02:58.8]}
4. Nf3 {[%clk 0:02:59.4]} 4... Nc6 {[%clk 0:02:59.1]} 5. O-O {[%clk 0:02:59.9]}
5... Bd7 {[%clk 0:02:59.5]} 6. d4 {[%clk 0:02:59.2]} 6... Qc8 {[%clk 0:02:59.3]}
7. Nc3 {[%clk 0:02:41]} 7... Bh3 {[%clk 0:02:56]} 8. e4 {[%clk 0:02:36]} 8... h5
{[%clk 0:02:47.2]} 9. Bxh3 {[%clk 0:02:25.5]} 9... Qxh3 {[%clk 0:02:48.1]} 10.
Nd5 {[%clk 0:02:25.8]} 10... Qd7 {[%clk 0:02:42.6]} 11. h4 {[%clk 0:02:24.5]}
11... Nf6 {[%clk 0:02:32.8]} 12. Re1 {[%clk 0:02:20.8]} 12... Ng4 {[%clk
0:02:30]} 13. Bg5 {[%clk 0:02:18.4]} 13... O-O {[%clk 0:02:18.8]} 14. Rc1 {[%clk
0:02:16]} 14... e6 {[%clk 0:02:07]} 15. Nc3 {[%clk 0:02:15.9]} 15... e5 {[%clk
0:01:56]} 16. dxe5 {[%clk 0:02:12]} 16... Ncxe5 {[%clk 0:01:54.1]} 17. Nxe5
{[%clk 0:02:09.7]} 17... Nxe5 {[%clk 0:01:52.8]} 18. Nd5 {[%clk 0:02:07.8]}
18... Qh3 {[%clk 0:01:49.3]} 19. Rc2 {[%clk 0:01:33.6]} 19... f6 {[%clk
0:01:28.1]} 20. Bc1 {[%clk 0:01:32.3]} 20... Rf7 {[%clk 0:00:54.2]} 21. Nf4
{[%clk 0:01:31.1]} 21... Qg4 {[%clk 0:00:49.3]} 22. Kg2 {[%clk 0:01:29.3]} 22...
Re8 {[%clk 0:00:44.9]} 23. f3 {[%clk 0:01:26.5]} 23... Qd7 {[%clk 0:00:41.9]}
24. c5 {[%clk 0:01:26.5]} 24... Kh7 {[%clk 0:00:35.3]} 25. cxd6 {[%clk
0:01:25.9]} 25... cxd6 {[%clk 0:00:36.2]} 26. Be3 {[%clk 0:01:22.9]} 26... Bh6
{[%clk 0:00:24.2]} 27. Nd5 {[%clk 0:01:17.7]} 27... Bg7 {[%clk 0:00:16.9]} 28.
b3 {[%clk 0:01:10.2]} 28... b6 {[%clk 0:00:17.1]} 29. Rc7 {[%clk 0:01:09.4]}
29... Qd8 {[%clk 0:00:16.9]} 30. Rxf7 {[%clk 0:01:09]} 30... Nxf7 {[%clk
0:00:16.9]} 31. Qe2 {[%clk 0:01:09]} 31... Qd7 {[%clk 0:00:15.6]} 32. Rc1 {[%clk
0:01:06]} 32... Rc8 {[%clk 0:00:15.7]} 33. Rc2 {[%clk 0:01:04.4]} 33... Rxc2
{[%clk 0:00:13.2]} 34. Qxc2 {[%clk 0:01:04.5]} 34... Qb5 {[%clk 0:00:13.9]} 35.
a4 {[%clk 0:01:03.2]} 35... Qa6 {[%clk 0:00:11.5]} 36. f4 {[%clk 0:00:54.2]}
36... Qb7 {[%clk 0:00:10]} 37. b4 {[%clk 0:00:52.3]} 37... f5 {[%clk 0:00:09.2]}
38. b5 {[%clk 0:00:50.5]} 38... Nd8 {[%clk 0:00:06.3]} 39. Kf3 {[%clk
0:00:41.4]} 39... Ne6 {[%clk 0:00:05.7]} 40. Qc6 {[%clk 0:00:40.2]} 40... fxe4+
{[%clk 0:00:05.6]} 41. Kxe4 {[%clk 0:00:40.2]} 41... Qf7 {[%clk 0:00:06.4]} 42.
Kf3 {[%clk 0:00:38.9]} 42... Bd4 {[%clk 0:00:04.7]} 43. Qxd6 {[%clk 0:00:34.9]}
43... Bxe3 {[%clk 0:00:03.9]} 44. Kxe3 {[%clk 0:00:35.4]} 44... Ng7 {[%clk
0:00:03]} 45. Qe5 {[%clk 0:00:33]} 45... Nf5+ {[%clk 0:00:02.5]} 46. Kf2 {[%clk
0:00:33.3]} 46... Ng7 {[%clk 0:00:02.2]} 47. Nf6+ {[%clk 0:00:32.2]} 1-0

[Event "Early-Titled-Tuesday-Blitz-May-28-2024"]
[Site "Chess.com"]
[Date "2024.05.28"]
[Round "8"]
[White "Arteler"]
[Black "Jeppesen08"]
[Result "0-1"]
[WhiteElo "2236"]
[BlackElo "2476"]
[TimeControl "180+1"]
[EndTime "9:30:10 PDT"]
[Termination "Jeppesen08 won by checkmate"]

1. e4 {[%clk 0:03:00.9]} 1... c5 {[%clk 0:02:54.7]} 2. Nf3 {[%clk 0:03:01.1]}
2... e6 {[%clk 0:02:48.8]} 3. c3 {[%clk 0:03:00.3]} 3... Nf6 {[%clk 0:02:42.9]}
4. e5 {[%clk 0:02:56.2]} 4... Nd5 {[%clk 0:02:43.5]} 5. d4 {[%clk 0:02:56.1]}
5... cxd4 {[%clk 0:02:43.1]} 6. cxd4 {[%clk 0:02:57]} 6... Nc6 {[%clk
0:02:43.6]} 7. Nc3 {[%clk 0:02:49.9]} 7... d6 {[%clk 0:02:43.5]} 8. Bd3 {[%clk
0:02:45.6]} 8... Be7 {[%clk 0:02:38.5]} 9. O-O {[%clk 0:02:45.2]} 9... a6 {[%clk
0:02:36.7]} 10. Qe2 {[%clk 0:02:40.7]} 10... Nxc3 {[%clk 0:02:30.7]} 11. bxc3
{[%clk 0:02:40.2]} 11... dxe5 {[%clk 0:02:31.4]} 12. dxe5 {[%clk 0:02:32.7]}
12... b5 {[%clk 0:02:30.5]} 13. Bb2 {[%clk 0:02:21.3]} 13... Bb7 {[%clk
0:02:28.8]} 14. Rfd1 {[%clk 0:02:18.4]} 14... Qc7 {[%clk 0:02:28.5]} 15. Rac1
{[%clk 0:02:01.2]} 15... g6 {[%clk 0:02:00]} 16. Qe3 {[%clk 0:01:32]} 16... O-O
{[%clk 0:01:52.9]} 17. Rb1 {[%clk 0:01:10.5]} 17... Na5 {[%clk 0:01:51]} 18. Bc1
{[%clk 0:00:33.2]} 18... Rfd8 {[%clk 0:01:42.4]} 19. Qh6 {[%clk 0:00:30.5]}
19... Bxf3 {[%clk 0:01:29.9]} 20. gxf3 {[%clk 0:00:28.2]} 20... Qxe5 {[%clk
0:01:24.7]} 21. Bf4 {[%clk 0:00:18.6]} 21... Qg7 {[%clk 0:01:17.5]} 22. Qh3
{[%clk 0:00:17.4]} 22... Rac8 {[%clk 0:01:13.1]} 23. a4 {[%clk 0:00:11]} 23...
Qxc3 {[%clk 0:01:05.2]} 24. Qf1 {[%clk 0:00:07.3]} 24... b4 {[%clk 0:01:00.1]}
25. Rbc1 {[%clk 0:00:07.3]} 25... Qf6 {[%clk 0:00:54.7]} 26. Bc7 {[%clk
0:00:07.7]} 26... Rd5 {[%clk 0:00:48.9]} 27. Be4 {[%clk 0:00:03.9]} 27... Rxd1
{[%clk 0:00:22.4]} 28. Qxd1 {[%clk 0:00:04.8]} 28... Nb3 {[%clk 0:00:14.5]} 29.
Kh1 {[%clk 0:00:03.6]} 29... Nxc1 {[%clk 0:00:12.8]} 30. Qd7 {[%clk 0:00:03.1]}
30... Rxc7 {[%clk 0:00:10.5]} 31. Qxc7 {[%clk 0:00:03.3]} 31... Ne2 {[%clk
0:00:09.3]} 32. Qc4 {[%clk 0:00:03]} 32... Nf4 {[%clk 0:00:09.4]} 33. Qxa6
{[%clk 0:00:02.6]} 33... Qa1+ {[%clk 0:00:09.2]} 34. Bb1 {[%clk 0:00:01.3]}
34... Qxb1+ {[%clk 0:00:09.3]} 35. Qf1 {[%clk 0:00:01.8]} 35... Qxf1# {[%clk
0:00:09.8]} 0-1

[Event "Early-Titled-Tuesday-Blitz-May-28-2024"]
[Site "Chess.com"]
[Date "2024.05.28"]
[Round "8"]
[White "Vesper2018"]
[Black "ab-lsv"]
[Result "1-0"]
[WhiteElo "2584"]
[BlackElo "2368"]
[TimeControl "180+1"]
[EndTime "9:30:15 PDT"]
[Termination "Vesper2018 won by resignation"]

1. e4 {[%clk 0:03:00.9]} 1... c6 {[%clk 0:02:59.8]} 2. d4 {[%clk 0:03:00.6]}
2... d5 {[%clk 0:03:00.7]} 3. e5 {[%clk 0:03:00.4]} 3... c5 {[%clk 0:03:01.3]}
4. c3 {[%clk 0:02:59.1]} 4... Nc6 {[%clk 0:03:01.1]} 5. Be2 {[%clk 0:02:59.5]}
5... cxd4 {[%clk 0:03:00.9]} 6. cxd4 {[%clk 0:02:59.5]} 6... Bf5 {[%clk
0:03:01.1]} 7. Nf3 {[%clk 0:02:50]} 7... e6 {[%clk 0:02:59.4]} 8. O-O {[%clk
0:02:48.6]} 8... Nge7 {[%clk 0:02:58.2]} 9. Nc3 {[%clk 0:02:46.7]} 9... Bg4
{[%clk 0:02:53.5]} 10. Be3 {[%clk 0:02:04.2]} 10... Nf5 {[%clk 0:02:51.8]} 11.
Qd2 {[%clk 0:01:57.7]} 11... Be7 {[%clk 0:02:49.3]} 12. h3 {[%clk 0:01:56.1]}
12... Bxf3 {[%clk 0:02:48.5]} 13. Bxf3 {[%clk 0:01:56.7]} 13... O-O {[%clk
0:02:47.6]} 14. Bg4 {[%clk 0:01:52.9]} 14... Nxe3 {[%clk 0:02:46.9]} 15. fxe3
{[%clk 0:01:53.1]} 15... Bg5 {[%clk 0:02:41]} 16. g3 {[%clk 0:01:48.3]} 16... g6
{[%clk 0:02:35.3]} 17. Kg2 {[%clk 0:01:41.3]} 17... h5 {[%clk 0:02:33.9]} 18.
Be2 {[%clk 0:01:37.1]} 18... h4 {[%clk 0:02:32.3]} 19. gxh4 {[%clk 0:01:32.5]}
19... Bxh4 {[%clk 0:02:31.8]} 20. Kh2 {[%clk 0:01:32.3]} 20... Kg7 {[%clk
0:02:26.9]} 21. Rg1 {[%clk 0:01:31.8]} 21... Rh8 {[%clk 0:02:26.3]} 22. Bd3
{[%clk 0:01:27.2]} 22... Rh6 {[%clk 0:02:25.6]} 23. Raf1 {[%clk 0:01:25.2]}
23... Qe7 {[%clk 0:02:13.6]} 24. Nb5 {[%clk 0:01:24.9]} 24... Rah8 {[%clk
0:02:07.4]} 25. Rf3 {[%clk 0:01:22.5]} 25... Kg8 {[%clk 0:01:36.5]} 26. Nd6
{[%clk 0:00:53.8]} 26... R8h7 {[%clk 0:01:32]} 27. Rgf1 {[%clk 0:00:47.9]} 27...
f5 {[%clk 0:01:24.9]} 28. Rg1 {[%clk 0:00:35.6]} 28... Kh8 {[%clk 0:01:21.2]}
29. Qg2 {[%clk 0:00:24.8]} 29... Nd8 {[%clk 0:01:15]} 30. Rc1 {[%clk 0:00:23.2]}
30... Nc6 {[%clk 0:01:14.7]} 31. Bb5 {[%clk 0:00:20.5]} 31... Qd7 {[%clk
0:00:29]} 32. Bxc6 {[%clk 0:00:20.1]} 32... bxc6 {[%clk 0:00:28.8]} 33. Qc2
{[%clk 0:00:20.4]} 33... g5 {[%clk 0:00:17.2]} 34. Qxc6 {[%clk 0:00:20.2]} 34...
Qxc6 {[%clk 0:00:11.9]} 35. Rxc6 {[%clk 0:00:20]} 35... Rg7 {[%clk 0:00:12.3]}
36. Nxf5 {[%clk 0:00:17.3]} 36... exf5 {[%clk 0:00:11.8]} 37. Rxh6+ {[%clk
0:00:17]} 37... Kg8 {[%clk 0:00:11.4]} 38. Rxf5 {[%clk 0:00:17.2]} 38... Bf2
{[%clk 0:00:10.6]} 39. Rxf2 {[%clk 0:00:16]} 1-0

[Event "Early-Titled-Tuesday-Blitz-May-28-2024"]
[Site "Chess.com"]
[Date "2024.05.28"]
[Round "8"]
[White "MITerryble"]
[Black "jumpingknight20"]
[Result "1-0"]
[WhiteElo "3018"]
[BlackElo "2788"]
[TimeControl "180+1"]
[EndTime "9:30:17 PDT"]
[Termination "MITerryble won by resignation"]

1. c4 {[%clk 0:03:00.9]} 1... Nf6 {[%clk 0:02:57.2]} 2. Nc3 {[%clk 0:03:00]}
2... e5 {[%clk 0:02:57.5]} 3. Nf3 {[%clk 0:02:59.8]} 3... Nc6 {[%clk 0:02:57.4]}
4. g3 {[%clk 0:03:00]} 4... d5 {[%clk 0:02:56.9]} 5. cxd5 {[%clk 0:02:58.5]}
5... Nxd5 {[%clk 0:02:57.8]} 6. Bg2 {[%clk 0:02:58.9]} 6... Nb6 {[%clk
0:02:58.3]} 7. O-O {[%clk 0:02:59]} 7... Be7 {[%clk 0:02:58.6]} 8. d3 {[%clk
0:02:59.5]} 8... O-O {[%clk 0:02:58.1]} 9. Be3 {[%clk 0:02:59.5]} 9... Be6
{[%clk 0:02:55.8]} 10. Rc1 {[%clk 0:02:54.8]} 10... h6 {[%clk 0:02:49.9]} 11.
Nd2 {[%clk 0:02:54.3]} 11... Nd5 {[%clk 0:02:33.6]} 12. Nxd5 {[%clk 0:02:51.3]}
12... Bxd5 {[%clk 0:02:34.5]} 13. Bxd5 {[%clk 0:02:51.8]} 13... Qxd5 {[%clk
0:02:35.4]} 14. Qb3 {[%clk 0:02:52.5]} 14... Qxb3 {[%clk 0:02:31.3]} 15. Nxb3
{[%clk 0:02:53.4]} 15... Rfd8 {[%clk 0:02:08.9]} 16. Rc4 {[%clk 0:02:51.8]}
16... Rd5 {[%clk 0:02:08.4]} 17. Rfc1 {[%clk 0:02:51.3]} 17... Rad8 {[%clk
0:02:03.5]} 18. Rxc6 {[%clk 0:02:38]} 18... bxc6 {[%clk 0:02:01.1]} 19. Rxc6
{[%clk 0:02:38.9]} 19... Bd6 {[%clk 0:01:24.9]} 20. Ra6 {[%clk 0:02:38.9]} 20...
Ra8 {[%clk 0:01:18.4]} 21. g4 {[%clk 0:01:50.8]} 21... Kf8 {[%clk 0:01:03.4]}
22. Kg2 {[%clk 0:01:47.8]} 22... Ke8 {[%clk 0:00:54.3]} 23. Kf3 {[%clk
0:01:39.7]} 23... Rb5 {[%clk 0:00:52.6]} 24. h4 {[%clk 0:01:30]} 24... Kd7
{[%clk 0:00:50.6]} 25. h5 {[%clk 0:01:30.2]} 25... Rb4 {[%clk 0:00:23.8]} 26.
Bd2 {[%clk 0:01:18.6]} 26... Rb5 {[%clk 0:00:22.5]} 27. Bc3 {[%clk 0:01:15.5]}
27... Bb4 {[%clk 0:00:22.2]} 28. a4 {[%clk 0:01:08.7]} 28... Rbb8 {[%clk
0:00:20.9]} 29. Bxe5 {[%clk 0:01:09.1]} 29... Bd6 {[%clk 0:00:19.4]} 30. Bxd6
{[%clk 0:01:09.6]} 30... cxd6 {[%clk 0:00:20.3]} 31. Nd4 {[%clk 0:01:10.5]}
31... Rb6 {[%clk 0:00:18.5]} 32. Rxb6 {[%clk 0:01:03]} 32... axb6 {[%clk
0:00:18.8]} 33. b3 {[%clk 0:01:03.9]} 33... Re8 {[%clk 0:00:17.2]} 34. Nf5
{[%clk 0:01:04.1]} 34... Rg8 {[%clk 0:00:12.2]} 35. Kf4 {[%clk 0:01:01.5]} 35...
Ke6 {[%clk 0:00:12.2]} 36. e4 {[%clk 0:01:01.3]} 36... Kf6 {[%clk 0:00:03.6]}
37. Nxd6 {[%clk 0:01:00.4]} 37... Rd8 {[%clk 0:00:03.8]} 38. d4 {[%clk
0:00:57.4]} 38... Ke6 {[%clk 0:00:04.2]} 39. e5 {[%clk 0:00:51]} 39... Kd5
{[%clk 0:00:03.8]} 40. Ke3 {[%clk 0:00:51.2]} 40... f6 {[%clk 0:00:03.5]} 41. f4
{[%clk 0:00:49.2]} 41... fxe5 {[%clk 0:00:04.1]} 42. fxe5 {[%clk 0:00:47]} 42...
Rf8 {[%clk 0:00:04.2]} 43. Nf5 {[%clk 0:00:47.5]} 43... Rf7 {[%clk 0:00:04.2]}
44. Kd3 {[%clk 0:00:47.5]} 44... Rc7 {[%clk 0:00:03.6]} 45. Ne3+ {[%clk
0:00:46.9]} 45... Ke6 {[%clk 0:00:04.3]} 46. Ke4 {[%clk 0:00:47.5]} 46... Rc3
{[%clk 0:00:03.9]} 47. d5+ {[%clk 0:00:48.4]} 47... Kf7 {[%clk 0:00:03.6]} 48.
e6+ {[%clk 0:00:45.5]} 48... Kf6 {[%clk 0:00:03.1]} 49. Nf5 {[%clk 0:00:45.1]}
49... Rxb3 {[%clk 0:00:03.5]} 50. e7 {[%clk 0:00:45.7]} 50... Kf7 {[%clk
0:00:03.3]} 51. d6 {[%clk 0:00:46]} 51... Ke8 {[%clk 0:00:02.5]} 52. Nxg7+
{[%clk 0:00:45.3]} 1-0

[Event "Early-Titled-Tuesday-Blitz-May-28-2024"]
[Site "Chess.com"]
[Date "2024.05.28"]
[Round "8"]
[White "igorkovalenko"]
[Black "Sl4werThanYou"]
[Result "1-0"]
[WhiteElo "2907"]
[BlackElo "2735"]
[TimeControl "180+1"]
[EndTime "9:30:18 PDT"]
[Termination "igorkovalenko won by checkmate"]

1. e4 {[%clk 0:03:00.9]} 1... c5 {[%clk 0:02:55.2]} 2. c3 {[%clk 0:02:56.3]}
2... g6 {[%clk 0:02:47.2]} 3. d4 {[%clk 0:02:48.3]} 3... cxd4 {[%clk 0:02:48.1]}
4. cxd4 {[%clk 0:02:49.1]} 4... d5 {[%clk 0:02:48.4]} 5. e5 {[%clk 0:02:48.8]}
5... Nc6 {[%clk 0:02:48]} 6. Nc3 {[%clk 0:02:49]} 6... Bg7 {[%clk 0:02:43.4]} 7.
Bb5 {[%clk 0:02:45.2]} 7... Nh6 {[%clk 0:02:42.9]} 8. Nge2 {[%clk 0:02:44.2]}
8... O-O {[%clk 0:02:42.8]} 9. O-O {[%clk 0:02:43.9]} 9... Bg4 {[%clk
0:02:37.6]} 10. f3 {[%clk 0:02:43.6]} 10... Bd7 {[%clk 0:02:37.8]} 11. Ba4
{[%clk 0:02:40.7]} 11... e6 {[%clk 0:02:15.6]} 12. Bxc6 {[%clk 0:02:31.6]} 12...
Bxc6 {[%clk 0:02:12.1]} 13. g4 {[%clk 0:02:18.9]} 13... Kh8 {[%clk 0:02:12]} 14.
Be3 {[%clk 0:02:18]} 14... Qh4 {[%clk 0:01:59.9]} 15. Qd2 {[%clk 0:02:17.6]}
15... Ng8 {[%clk 0:01:19.4]} 16. Bg5 {[%clk 0:02:16.7]} 16... Bh6 {[%clk
0:01:20]} 17. Bxh6 {[%clk 0:02:16.2]} 17... Nxh6 {[%clk 0:01:12.3]} 18. Qe3
{[%clk 0:02:15.4]} 18... Rac8 {[%clk 0:01:05.2]} 19. Rf2 {[%clk 0:02:14.9]}
19... Rc7 {[%clk 0:01:04.1]} 20. Kg2 {[%clk 0:02:14]} 20... Ng8 {[%clk
0:01:00.3]} 21. h3 {[%clk 0:02:10.1]} 21... a5 {[%clk 0:00:57.9]} 22. a3 {[%clk
0:02:07.5]} 22... Rfc8 {[%clk 0:00:56.9]} 23. f4 {[%clk 0:02:07]} 23... Ne7
{[%clk 0:00:50.7]} 24. Ng1 {[%clk 0:02:06.5]} 24... Qh6 {[%clk 0:00:49.4]} 25.
Nf3 {[%clk 0:02:06.4]} 25... b5 {[%clk 0:00:49.6]} 26. Na2 {[%clk 0:02:00.4]}
26... Be8 {[%clk 0:00:49.1]} 27. Rc1 {[%clk 0:01:59.9]} 27... Rc4 {[%clk
0:00:47.2]} 28. Kg3 {[%clk 0:01:44]} 28... Qf8 {[%clk 0:00:41.1]} 29. Rc3 {[%clk
0:01:36.2]} 29... b4 {[%clk 0:00:38.5]} 30. axb4 {[%clk 0:01:36]} 30... axb4
{[%clk 0:00:39.4]} 31. Rxc4 {[%clk 0:01:36.7]} 31... dxc4 {[%clk 0:00:31.5]} 32.
Nxb4 {[%clk 0:01:36.7]} 32... Rb8 {[%clk 0:00:32.1]} 33. Na2 {[%clk 0:01:34.1]}
33... Nd5 {[%clk 0:00:32.3]} 34. Qc1 {[%clk 0:01:33]} 34... Bc6 {[%clk
0:00:29.3]} 35. Qxc4 {[%clk 0:01:29.6]} 35... Ba8 {[%clk 0:00:29.8]} 36. Nc3
{[%clk 0:01:27.2]} 36... Qd8 {[%clk 0:00:24.6]} 37. Ng5 {[%clk 0:01:23.8]} 37...
Kg7 {[%clk 0:00:22.9]} 38. Qd3 {[%clk 0:00:53.7]} 38... Rb4 {[%clk 0:00:15.3]}
39. Rd2 {[%clk 0:00:52]} 39... Qb6 {[%clk 0:00:09.4]} 40. f5 {[%clk 0:00:35.9]}
40... exf5 {[%clk 0:00:06.9]} 41. gxf5 {[%clk 0:00:35.8]} 41... Rxb2 {[%clk
0:00:05.4]} 42. f6+ {[%clk 0:00:33.5]} 42... Kg8 {[%clk 0:00:05.9]} 43. Nxd5
{[%clk 0:00:28.1]} 43... Bxd5 {[%clk 0:00:04.3]} 44. Rc2 {[%clk 0:00:26.9]}
44... Rxc2 {[%clk 0:00:01.4]} 45. Qxc2 {[%clk 0:00:27.2]} 45... Bb7 {[%clk
0:00:01.1]} 46. Qc4 {[%clk 0:00:23]} 46... h6 {[%clk 0:00:01.5]} 47. Qxf7+
{[%clk 0:00:22.8]} 47... Kh8 {[%clk 0:00:02.4]} 48. Qg7# {[%clk 0:00:23.2]} 1-0

[Event "Early-Titled-Tuesday-Blitz-May-28-2024"]
[Site "Chess.com"]
[Date "2024.05.28"]
[Round "8"]
[White "Ginger_GM"]
[Black "Nitzan_Steinberg"]
[Result "0-1"]
[WhiteElo "2739"]
[BlackElo "2906"]
[TimeControl "180+1"]
[EndTime "9:30:21 PDT"]
[Termination "Nitzan_Steinberg won by checkmate"]

1. f4 {[%clk 0:03:00.9]} 1... d5 {[%clk 0:02:59.2]} 2. Nf3 {[%clk 0:03:00]} 2...
g6 {[%clk 0:02:59.8]} 3. e3 {[%clk 0:02:58.4]} 3... Bg7 {[%clk 0:03:00.4]} 4. c4
{[%clk 0:02:57]} 4... c6 {[%clk 0:02:58.8]} 5. cxd5 {[%clk 0:02:55.3]} 5... cxd5
{[%clk 0:02:59.7]} 6. d4 {[%clk 0:02:54.9]} 6... Nc6 {[%clk 0:02:58.6]} 7. Nc3
{[%clk 0:02:54.4]} 7... Nf6 {[%clk 0:02:51.6]} 8. Bd3 {[%clk 0:02:54.1]} 8...
Bf5 {[%clk 0:02:51.9]} 9. Bxf5 {[%clk 0:02:53.7]} 9... gxf5 {[%clk 0:02:52.8]}
10. O-O {[%clk 0:02:53.6]} 10... e6 {[%clk 0:02:50.5]} 11. Ne5 {[%clk
0:02:53.1]} 11... h5 {[%clk 0:02:39.3]} 12. Bd2 {[%clk 0:02:50.9]} 12... h4
{[%clk 0:02:29.3]} 13. Rc1 {[%clk 0:02:45]} 13... h3 {[%clk 0:02:26.2]} 14. g3
{[%clk 0:02:43.8]} 14... Nxe5 {[%clk 0:02:22.4]} 15. dxe5 {[%clk 0:02:38.6]}
15... Ng4 {[%clk 0:02:22.2]} 16. Qa4+ {[%clk 0:02:26]} 16... Kf8 {[%clk
0:02:04.5]} 17. Nb5 {[%clk 0:02:22.8]} 17... Kg8 {[%clk 0:01:58.5]} 18. Nd6
{[%clk 0:02:12]} 18... Bf8 {[%clk 0:01:44]} 19. Qb4 {[%clk 0:01:52.1]} 19... Rh7
{[%clk 0:01:18.1]} 20. Qxb7 {[%clk 0:01:32.9]} 20... Rb8 {[%clk 0:01:03.7]} 21.
Qxa7 {[%clk 0:01:19.5]} 21... Rxb2 {[%clk 0:00:50.7]} 22. Rc8 {[%clk 0:01:17.3]}
22... Qxc8 {[%clk 0:00:21.7]} 23. Nxc8 {[%clk 0:01:16.2]} 23... Rxd2 {[%clk
0:00:22.4]} 24. Nd6 {[%clk 0:00:49.7]} 24... Rg2+ {[%clk 0:00:22.3]} 25. Kh1
{[%clk 0:00:49.9]} 25... Rxh2+ {[%clk 0:00:22.9]} 26. Kg1 {[%clk 0:00:50]} 26...
Rg2+ {[%clk 0:00:23.8]} 27. Kh1 {[%clk 0:00:49.9]} 27... Rxg3 {[%clk 0:00:12.4]}
28. e4 {[%clk 0:00:45.2]} 28... dxe4 {[%clk 0:00:11.1]} 29. Rg1 {[%clk 0:00:34]}
29... Rxg1+ {[%clk 0:00:05]} 30. Qxg1 {[%clk 0:00:34.9]} 30... e3 {[%clk
0:00:04.6]} 31. Ne8 {[%clk 0:00:25.5]} 31... Kh8 {[%clk 0:00:03.6]} 32. Nf6
{[%clk 0:00:25.4]} 32... Rg7 {[%clk 0:00:02.8]} 33. Nxg4 {[%clk 0:00:24.5]}
33... fxg4 {[%clk 0:00:02.7]} 34. Qg3 {[%clk 0:00:20.8]} 34... Bc5 {[%clk
0:00:01.1]} 35. Qh4+ {[%clk 0:00:18.8]} 35... Kg8 {[%clk 0:00:01.7]} 36. Qd8+
{[%clk 0:00:18.2]} 36... Bf8 {[%clk 0:00:02.4]} 37. Qh4 {[%clk 0:00:14.7]} 37...
e2 {[%clk 0:00:02.9]} 38. Qe1 {[%clk 0:00:12.4]} 38... g3 {[%clk 0:00:02.4]} 39.
Qxe2 {[%clk 0:00:12.5]} 39... g2+ {[%clk 0:00:02.6]} 40. Qxg2 {[%clk 0:00:09.1]}
40... hxg2+ {[%clk 0:00:02.7]} 41. Kg1 {[%clk 0:00:09.3]} 41... Bc5+ {[%clk
0:00:03.2]} 42. Kh2 {[%clk 0:00:09.4]} 42... g1=Q+ {[%clk 0:00:04.1]} 43. Kh3
{[%clk 0:00:09.2]} 43... Qh1# {[%clk 0:00:05]} 0-1